bitfinex/quotes_BTCUSD_20250218
["timestamp","ask_amount","ask_price","bid_price","bid_amount"]
[1739842338884,0.56035861,96238.0,96237.0,0.10250365]
[1739842340190,0.51358461,96238.0,96237.0,0.10250365]
[1739842340548,0.44289561,96238.0,96237.0,0.10250365]
[1739842341514,0.43175261,96238.0,96237.0,0.10250365]
[1739842341725,0.40774661,96238.0,96237.0,0.10250365]
[1739842341924,0.36742461,96238.0,96237.0,0.10250365]
[1739842344214,0.36842461,96238.0,96237.0,0.10250365]
[1739842344623,0.36742461,96238.0,96237.0,0.10250365]
[1739842346789,0.02023361,96238.0,96237.0,0.25836865]
[1739842346992,0.15108661,96238.0,96237.0,0.10250365]
[1739842347191,0.30392561,96238.0,96237.0,0.10250365]
[1739842347457,0.30570061,96238.0,96237.0,0.10250365]
[1739842347629,0.28637361,96238.0,96237.0,0.10250365]
[1739842347835,0.02023361,96238.0,96237.0,0.33616865]
[1739842348374,0.02023361,96238.0,96237.0,0.18030365]
[1739842350952,0.357803,96245.0,96237.0,0.18030365]
[1739842351108,0.376369,96244.0,96237.0,0.2725511]
[1739842351719,0.376369,96244.0,96237.0,0.18030365]
[1739842351968,0.155857,96243.0,96237.0,0.18030365]
[1739842352170,0.494197,96242.0,96237.0,0.18030365]
[1739842353108,0.461066,96242.0,96237.0,0.18030365]
[1739842353311,0.765765,96241.0,96237.0,0.18030365]
[1739842354849,0.02516582,96246.0,96237.0,0.18030365]
[1739842355095,0.02082128,96249.0,96239.0,0.15586]
[1739842355096,0.404574,96245.0,96239.0,0.15586]
[1739842355279,0.473699,96244.0,96237.0,0.38812265]
[1739842355480,0.473699,96244.0,96237.0,0.18030365]
[1739842355481,0.254251,96243.0,96237.0,0.18030365]
[1739842356475,0.410106,96243.0,96237.0,0.18030365]
[1739842356650,0.230957,96242.0,96237.0,0.18030365]
[1739842358027,0.282199,96243.0,96237.0,0.18030365]
[1739842358229,0.001,96242.0,96237.0,0.18030365]
[1739842358457,0.117038,96241.0,96237.0,0.18030365]
[1739842358670,0.12123,96241.0,96237.0,0.18030365]
[1739842359095,0.001,96242.0,96241.0,0.155858]
[1739842359324,0.001,96242.0,96241.0,0.33976165]
[1739842359534,0.02494169,96246.0,96245.0,0.155852]
[1739842359741,0.02494169,96246.0,96245.0,0.36549455]
[1739842359952,0.0001702,96246.0,96245.0,0.41215565]
[1739842361103,0.0011702,96246.0,96245.0,0.41215565]
[1739842361252,0.0001702,96246.0,96245.0,0.41215565]
[1739842362136,0.0001702,96246.0,96245.0,0.41315565]
[1739842362993,0.0001702,96246.0,96245.0,0.74165565]
[1739842363394,0.0001702,96246.0,96245.0,0.74265565]
[1739842364683,0.0001702,96246.0,96245.0,0.8451593]
[1739842366127,0.15,96276.0,96247.0,0.0785]
[1739842366364,0.15,96276.0,96245.0,0.5832073]
[1739842366365,0.275466,96275.0,96266.0,0.0785]
[1739842366569,0.275466,96275.0,96266.0,0.18100365]
[1739842366954,0.30092882,96275.0,96266.0,0.18100365]
[1739842367149,0.504038,96274.0,96266.0,0.18100365]
[1739842367393,0.172284,96274.0,96266.0,0.18100365]
[1739842367573,0.27761463,96274.0,96266.0,0.33682165]
[1739842367868,0.15538,96273.0,96267.0,0.155816]
[1739842368185,0.125779,96273.0,96266.0,0.18100365]
[1739842368392,0.00010963,96274.0,96272.0,0.155808]
[1739842368854,0.00010963,96274.0,96266.0,0.0785]
[1739842368855,0.00010963,96274.0,96273.0,0.25830965]
[1739842369655,0.00110963,96274.0,96273.0,0.25830965]
[1739842369871,0.00010963,96274.0,96273.0,0.25830965]
[1739842370076,0.00010963,96274.0,96273.0,0.40489042]
[1739842370298,0.00110963,96274.0,96273.0,0.40489042]
[1739842373402,0.00110963,96274.0,96273.0,0.33520965]
[1739842379540,0.00110963,96274.0,96273.0,0.17940365]
[1739842379964,0.00110963,96274.0,96273.0,0.33520965]
[1739842383946,0.01940787,96291.0,96273.0,0.17940365]
[1739842384155,0.15,96289.0,96273.0,0.17940365]
[1739842384360,0.305784,96287.0,96279.0,0.155796]
[1739842384534,0.15,96285.0,96279.0,0.25829965]
[1739842384690,0.354604,96284.0,96279.0,0.25829965]
[1739842384897,0.15887,96284.0,96280.0,0.155795]
[1739842385316,0.15887,96284.0,96279.0,0.10250365]
[1739842385719,0.15887,96284.0,96279.0,0.25829965]
[1739842385922,0.03209306,96287.0,96280.0,0.10250365]
[1739842386201,0.15,96285.0,96283.0,0.155789]
[1739842386805,0.172975,96284.0,96281.0,0.155793]
[1739842387001,0.15,96285.0,96280.0,0.10250365]
[1739842387207,0.271506,96284.0,96282.0,0.155791]
[1739842387888,0.271506,96284.0,96280.0,0.25829765]
[1739842388314,0.271506,96284.0,96280.0,0.25929765]
[1739842388691,0.421506,96284.0,96283.0,0.001]
[1739842389101,0.421506,96284.0,96281.0,0.155793]
[1739842389328,0.25688,96283.0,96281.0,0.155793]
[1739842389642,0.172157,96282.0,96281.0,0.155793]
[1739842389773,0.15,96284.0,96281.0,0.155793]
[1739842389774,0.251046,96283.0,96281.0,0.155793]
[1739842390416,0.251046,96283.0,96281.0,0.156793]
[1739842390582,0.03209306,96287.0,96282.0,0.24800642]
[1739842390766,0.03209306,96287.0,96282.0,0.20130365]
[1739842390968,0.03209306,96287.0,96286.0,0.155785]
[1739842391235,0.03209306,96287.0,96286.0,0.25828865]
[1739842393241,0.97113116,96287.0,96276.0,0.0815]
[1739842393469,0.97113116,96287.0,96277.0,0.10250365]
[1739842393470,0.155797,96279.0,96277.0,0.10250365]
[1739842393669,0.20772,96283.0,96277.0,0.10250365]
[1739842393867,0.155798,96278.0,96277.0,0.10250365]
[1739842394112,0.155798,96278.0,96260.0,0.0714]
[1739842394113,0.155821,96264.0,96260.0,0.0484]
[1739842394316,0.155821,96264.0,96259.0,0.00010963]
[1739842394317,0.20775,96270.0,96261.0,0.17820365]
[1739842394512,0.155823,96263.0,96261.0,0.10250365]
[1739842394714,0.368148,96262.0,96261.0,0.10250365]
[1739842394912,0.0454,96276.0,96261.0,0.10250365]
[1739842394913,0.155823,96263.0,96261.0,0.10250365]
[1739842395137,0.155826,96261.0,96259.0,0.00010963]
[1739842395361,0.15,96273.0,96259.0,0.00010963]
[1739842395534,0.04859641,96272.0,96259.0,0.00010963]
[1739842395734,0.155826,96262.0,96261.0,0.001]
[1739842395935,1.031664,96262.0,96261.0,0.001]
[1739842396230,1.273384,96262.0,96261.0,0.001]
[1739842396442,1.29601,96262.0,96261.0,0.001]
[1739842396651,0.155827,96260.0,96259.0,0.00010963]
[1739842396856,0.207766,96263.0,96259.0,0.00210963]
[1739842397038,0.155826,96261.0,96259.0,0.00210963]
[1739842397599,3.202401,96260.0,96259.0,0.00210963]
[1739842397958,0.15585,96246.0,96245.0,0.0003402]
[1739842398100,0.73838,96246.0,96245.0,0.0003402]
[1739842398297,0.662786,96246.0,96245.0,0.0003402]
[1739842399333,0.663786,96246.0,96245.0,0.0003402]
[1739842399536,0.664786,96246.0,96245.0,0.0003402]
[1739842399784,0.663786,96246.0,96245.0,0.0003402]
[1739842399982,0.15685,96246.0,96245.0,0.0003402]
[1739842400180,1.047903,96246.0,96245.0,0.0003402]
[1739842400382,1.196128,96246.0,96245.0,0.0003402]
[1739842400594,1.063062,96246.0,96245.0,0.0003402]
[1739842400792,1.063062,96246.0,96245.0,0.0043402]
[1739842400999,1.063062,96246.0,96245.0,0.0073402]
[1739842401195,1.036228,96246.0,96245.0,0.0073402]
[1739842401346,0.666885,96246.0,96245.0,0.0003402]
[1739842401549,0.620546,96246.0,96245.0,0.0013402]
[1739842401754,0.770546,96246.0,96245.0,0.0013402]
[1739842405238,0.769546,96246.0,96245.0,0.0013402]
[1739842406649,0.87204965,96246.0,96245.0,0.0013402]
[1739842406887,0.769546,96246.0,96245.0,0.0013402]
[1739842407497,0.769546,96246.0,96245.0,0.0003402]
[1739842407895,0.772546,96246.0,96245.0,0.0003402]
[1739842408329,0.771546,96246.0,96245.0,0.0003402]
[1739842408709,0.778711,96246.0,96245.0,0.0003402]
[1739842410252,0.773711,96246.0,96245.0,0.0003402]
[1739842410611,0.312015,96246.0,96245.0,0.0003402]
[1739842410807,2.370404,96246.0,96245.0,0.0003402]
[1739842411019,2.855005,96246.0,96245.0,0.0003402]
[1739842411240,2.788735,96246.0,96245.0,0.0003402]
[1739842411453,2.790735,96246.0,96245.0,0.0003402]
[1739842411664,2.305971,96246.0,96245.0,0.0003402]
[1739842411883,2.142908,96246.0,96245.0,0.0003402]
[1739842420332,2.1430783,96246.0,96245.0,0.0003402]
[1739842421195,0.3141853,96246.0,96245.0,0.0003402]
[1739842421618,2.8040143,96246.0,96245.0,0.0003402]
[1739842421834,3.2522453,96246.0,96245.0,0.0003402]
[1739842422042,3.2495823,96246.0,96245.0,0.0003402]
[1739842422254,2.7382063,96246.0,96245.0,0.0003402]
[1739842422561,2.7273493,96246.0,96245.0,0.0003402]
[1739842423317,2.7169683,96246.0,96245.0,0.0003402]
[1739842424312,2.81947195,96246.0,96245.0,0.0003402]
[1739842424484,2.7169683,96246.0,96245.0,0.0003402]
[1739842426723,2.6299473,96246.0,96245.0,0.0003402]
[1739842428730,2.6227473,96246.0,96245.0,0.0003402]
[1739842430889,2.6215373,96246.0,96245.0,0.0003402]
[1739842431430,0.15,96245.0,96237.0,0.0003404]
[1739842431638,0.15,96245.0,96236.0,0.0003404]
[1739842431639,0.305865,96237.0,96236.0,0.0003404]
[1739842431873,0.305871,96233.0,96232.0,0.0003404]
[1739842432088,1.203474,96233.0,96232.0,0.0003404]
[1739842432295,1.229402,96233.0,96232.0,0.0003404]
[1739842433329,1.233402,96233.0,96232.0,0.0003404]
[1739842434264,1.237402,96233.0,96232.0,0.0003404]
[1739842434695,1.233402,96233.0,96232.0,0.0003404]
[1739842434806,1.237402,96233.0,96232.0,0.0003404]
[1739842435208,1.237402,96233.0,96232.0,0.0830404]
[1739842435421,1.233402,96233.0,96232.0,0.0830404]
[1739842435625,1.229402,96233.0,96232.0,0.0830404]
[1739842435844,1.233402,96233.0,96232.0,0.0830404]
[1739842436064,1.29340267,96233.0,96232.0,0.0830404]
[1739842436258,1.28940267,96233.0,96232.0,0.0830404]
[1739842436466,1.31716496,96233.0,96232.0,0.0003404]
[1739842436963,1.35070906,96233.0,96232.0,0.0003404]
[1739842437499,1.34670906,96233.0,96232.0,0.0003404]
[1739842437703,1.25616429,96233.0,96232.0,0.0003404]
[1739842438029,1.25016429,96233.0,96232.0,0.0003404]
[1739842438331,1.25316429,96233.0,96232.0,0.0003404]
[1739842438734,1.25716429,96233.0,96232.0,0.0003404]
[1739842439364,1.10327329,96233.0,96232.0,0.0762404]
[1739842439573,1.10627329,96233.0,96232.0,0.0762404]
[1739842439781,1.085511,96233.0,96232.0,0.0762404]
[1739842439987,1.082511,96233.0,96232.0,0.0762404]
[1739842440412,0.503435,96233.0,96232.0,0.0762404]
[1739842440616,0.503435,96233.0,96232.0,0.1240404]
[1739842440617,0.287132,96233.0,96232.0,0.1240404]
[1739842441247,0.134132,96233.0,96232.0,0.1240404]
[1739842441462,0.137132,96233.0,96232.0,0.1240404]
[1739842441879,0.003,96233.0,96232.0,0.1240404]
[1739842442029,0.005,96233.0,96232.0,0.1240404]
[1739842442227,0.002,96233.0,96232.0,0.1240404]
[1739842442437,0.15,96242.0,96240.0,0.155859]
[1739842442638,0.130917,96241.0,96234.0,0.155869]
[1739842442865,0.215538,96243.0,96236.0,0.0754]
[1739842443067,0.263997,96243.0,96238.0,0.0754]
[1739842443226,0.110251,96243.0,96239.0,0.10250365]
[1739842443424,0.23406,96243.0,96239.0,0.10250365]
[1739842443628,0.001,96242.0,96239.0,0.10250365]
[1739842443886,0.317928,96241.0,96239.0,0.10250365]
[1739842444040,0.155861,96239.0,96238.0,0.0754]
[1739842444238,0.566124,96239.0,96238.0,0.0754]
[1739842445721,0.155871,96233.0,96232.0,0.0003404]
[1739842446163,0.465837,96233.0,96232.0,0.0003404]
[1739842446340,0.365837,96233.0,96232.0,0.0003404]
[1739842446578,0.13372,96233.0,96232.0,0.0772404]
[1739842446779,0.207783,96255.0,96232.0,0.0772404]
[1739842446780,0.155863,96239.0,96232.0,0.0772404]
[1739842446952,0.589582,96238.0,96232.0,0.0772404]
[1739842447156,0.01644973,96246.0,96234.0,0.0765]
[1739842447366,0.01644973,96246.0,96240.0,0.0765]
[1739842447367,0.15,96244.0,96240.0,0.0765]
[1739842447566,0.01644973,96246.0,96239.0,0.0466]
[1739842447567,0.0001703,96246.0,96244.0,0.155853]
[1739842447766,0.0001703,96246.0,96245.0,0.0765]
[1739842448306,0.0001703,96246.0,96245.0,0.17900365]
[1739842449561,0.0001703,96246.0,96245.0,0.18000365]
[1739842451432,0.0001703,96246.0,96245.0,0.18100365]
[1739842455289,0.0001703,96246.0,96245.0,0.33685565]
[1739842457098,0.0001703,96246.0,96245.0,0.35985565]
[1739842459122,0.0001703,96246.0,96245.0,0.40865565]
[1739842459345,0.0001703,96246.0,96245.0,0.8396593]
[1739842462888,0.0001703,96246.0,96245.0,0.73715565]
[1739842465194,0.0001703,96246.0,96245.0,0.66535565]
[1739842481105,0.155829,96259.0,96245.0,0.50950365]
[1739842481306,0.198275,96258.0,96246.0,0.10250365]
[1739842481559,0.207707,96290.0,96258.0,0.0798]
[1739842481760,0.11523,96271.0,96270.0,0.15581]
[1739842482105,0.0466,96296.0,96272.0,0.0831]
[1739842482344,0.02098366,96293.0,96272.0,0.20949465]
[1739842482737,0.02098366,96293.0,96272.0,0.23249465]
[1739842482939,0.207685,96300.0,96272.0,0.23249465]
[1739842483142,0.15,96292.0,96272.0,0.23249465]
[1739842483390,0.305776,96292.0,96272.0,0.27809465]
[1739842483599,0.155776,96292.0,96272.0,0.27809465]
[1739842483774,0.207696,96295.0,96272.0,0.27809465]
[1739842483983,0.15,96292.0,96272.0,0.28209465]
[1739842484400,0.305776,96292.0,96272.0,0.28209465]
[1739842484820,0.15,96292.0,96272.0,0.28209465]
[1739842485019,0.15,96290.0,96272.0,0.28209465]
[1739842485260,0.15,96290.0,96272.0,0.28509465]
[1739842485879,0.30578,96290.0,96272.0,0.26120365]
[1739842487011,0.155787,96286.0,96272.0,0.26120365]
[1739842487215,0.207711,96288.0,96272.0,0.21560365]
[1739842487409,0.155787,96285.0,96272.0,0.21560365]
[1739842487867,0.15,96290.0,96272.0,0.19260365]
[1739842488019,0.2412791,96277.0,96272.0,0.007]
[1739842488226,0.045,96282.0,96272.0,0.007]
[1739842488391,0.155802,96276.0,96272.0,0.007]
[1739842488823,0.155804,96275.0,96272.0,0.003]
[1739842489027,0.155804,96275.0,96270.0,0.3285]
[1739842489472,0.207727,96281.0,96270.0,0.3285]
[1739842489648,0.155801,96277.0,96270.0,0.3285]
[1739842489848,0.207727,96281.0,96272.0,0.001]
[1739842490299,0.155799,96278.0,96272.0,0.001]
[1739842490496,0.155799,96278.0,96270.0,0.3285]
[1739842490924,0.155799,96278.0,96270.0,0.3295]
[1739842491433,0.155799,96278.0,96270.0,0.3305]
[1739842491604,0.155799,96278.0,96270.0,0.3295]
[1739842492011,0.155799,96278.0,96270.0,0.3285]
[1739842492229,0.15,96285.0,96272.0,0.155808]
[1739842492481,0.15,96285.0,96272.0,0.25831165]
[1739842492864,0.155792,96282.0,96272.0,0.25831165]
[1739842493240,0.155791,96283.0,96272.0,0.25831165]
[1739842493651,0.155791,96283.0,96272.0,0.25111165]
[1739842493989,0.155791,96283.0,96272.0,0.25411165]
[1739842494716,0.15,96286.0,96272.0,0.25411165]
[1739842494917,0.15,96286.0,96272.0,0.25611165]
[1739842495133,0.357716,96286.0,96272.0,0.25411165]
[1739842495564,0.357716,96286.0,96272.0,0.25711165]
[1739842496886,0.155791,96283.0,96272.0,0.25711165]
[1739842499169,0.155789,96285.0,96272.0,0.25711165]
[1739842499597,0.155789,96284.0,96272.0,0.25711165]
[1739842499817,0.357716,96286.0,96272.0,0.25711165]
[1739842500005,0.15579,96283.0,96272.0,0.25711165]
[1739842502028,0.155792,96282.0,96272.0,0.25711165]
[1739842502189,0.155789,96284.0,96272.0,0.25711165]
[1739842502601,0.15,96286.0,96272.0,0.25711165]
[1739842502812,0.155791,96283.0,96272.0,0.25711165]
[1739842503277,0.155788,96285.0,96272.0,0.25711165]
[1739842504514,0.23997716,96287.0,96272.0,0.41007115]
[1739842504725,0.563542,96286.0,96273.0,0.10250365]
[1739842504932,1.020295,96285.0,96273.0,0.10250365]
[1739842505202,0.155797,96280.0,96273.0,0.10250365]
[1739842505822,0.20772,96283.0,96273.0,0.10250365]
[1739842506027,0.15581,96271.0,96270.0,0.3285]
[1739842506428,0.207738,96276.0,96270.0,0.3285]
[1739842506615,0.155805,96274.0,96273.0,0.001]
[1739842506956,0.207729,96279.0,96273.0,0.001]
[1739842507163,0.449605,96278.0,96273.0,0.001]
[1739842507374,0.279211,96280.0,96274.0,0.17880365]
[1739842507579,0.312863,96280.0,96274.0,0.17880365]
[1739842507798,0.502233,96282.0,96274.0,0.17880365]
[1739842508006,0.415227,96282.0,96274.0,0.17880365]
[1739842508215,0.144097,96282.0,96274.0,0.17880365]
[1739842508418,0.461452,96286.0,96275.0,0.207738]
[1739842508616,0.607296,96286.0,96275.0,0.207738]
[1739842508886,0.360908,96286.0,96276.0,0.155801]
[1739842509105,0.491003,96286.0,96276.0,0.155801]
[1739842509509,0.194259,96285.0,96278.0,0.207731]
[1739842509656,0.270408,96286.0,96280.0,0.207727]
[1739842509854,0.271414,96286.0,96281.0,0.155792]
[1739842510056,0.204837,96285.0,96280.0,0.207727]
[1739842510260,0.204837,96285.0,96283.0,0.155789]
[1739842510511,0.147665,96285.0,96280.0,0.207726]
[1739842510719,0.200061,96285.0,96283.0,0.155789]
[1739842510890,0.002,96286.0,96280.0,0.10250365]
[1739842511095,0.145901,96285.0,96280.0,0.10250365]
[1739842511646,0.135506,96285.0,96280.0,0.10250365]
[1739842511801,0.395013,96285.0,96280.0,0.10250365]
[1739842511962,0.388491,96286.0,96280.0,0.10250365]
[1739842512158,0.374121,96285.0,96280.0,0.10250365]
[1739842512369,0.117724,96284.0,96280.0,0.10250365]
[1739842512576,0.230312,96286.0,96280.0,0.10250365]
[1739842513659,0.231312,96286.0,96280.0,0.10250365]
[1739842513866,0.438798,96285.0,96280.0,0.10250365]
[1739842514121,0.19229,96285.0,96280.0,0.25829765]
[1739842514300,0.001,96286.0,96280.0,0.25829765]
[1739842514499,0.156587,96285.0,96280.0,0.10250365]
[1739842515111,0.226841,96286.0,96280.0,0.10250365]
[1739842515322,0.0206759,96292.0,96281.0,0.155793]
[1739842515531,0.111525,96286.0,96280.0,0.10250365]
[1739842515774,0.147931,96285.0,96280.0,0.10250365]
[1739842516352,0.2313322,96286.0,96280.0,0.10250365]
[1739842516563,0.314667,96285.0,96280.0,0.10250365]
[1739842516962,0.0001702,96286.0,96280.0,0.10250365]
[1739842517163,0.344408,96285.0,96280.0,0.10250365]
[1739842517360,0.314667,96285.0,96280.0,0.10250365]
[1739842517588,0.300796,96285.0,96280.0,0.10250365]
[1739842517798,0.388705,96285.0,96280.0,0.10250365]
[1739842518224,0.31206,96284.0,96280.0,0.10250365]
[1739842518377,0.42843,96285.0,96280.0,0.10250365]
[1739842518575,0.571131,96285.0,96280.0,0.10250365]
[1739842518783,0.453028,96284.0,96274.0,0.0763]
[1739842518983,0.155797,96279.0,96275.0,0.10250365]
[1739842519704,0.1558,96277.0,96275.0,0.10250365]
[1739842519902,0.207721,96283.0,96275.0,0.10250365]
[1739842520272,0.207718,96284.0,96275.0,0.10250365]
[1739842520516,0.687283,96283.0,96275.0,0.10250365]
[1739842520930,0.850936,96285.0,96276.0,0.155801]
[1739842521133,0.743326,96285.0,96276.0,0.10250365]
[1739842521343,0.530858,96284.0,96276.0,0.10250365]
[1739842522322,0.394839,96284.0,96282.0,0.155791]
[1739842522532,0.14068,96283.0,96280.0,0.155794]
[1739842522740,0.185595,96285.0,96280.0,0.25829765]
[1739842522947,0.291628,96285.0,96280.0,0.10250365]
[1739842524954,0.291628,96285.0,96280.0,0.25829865]
[1739842525342,0.291628,96285.0,96280.0,0.10250365]
[1739842525993,0.198763,96285.0,96280.0,0.10250365]
[1739842526210,0.212747,96285.0,96280.0,0.25829865]
[1739842526424,0.0001702,96286.0,96283.0,0.15579]
[1739842526893,0.0001702,96286.0,96280.0,0.10250365]
[1739842527749,0.0021702,96286.0,96280.0,0.10250365]
[1739842527996,0.0011702,96286.0,96280.0,0.31022965]
[1739842528204,0.0001702,96286.0,96282.0,0.155791]
[1739842528406,0.0011702,96286.0,96282.0,0.155791]
[1739842528561,0.0021702,96286.0,96282.0,0.155791]
[1739842528964,0.0011702,96286.0,96282.0,0.155791]
[1739842529164,0.0001702,96286.0,96282.0,0.155791]
[1739842529371,0.0011702,96286.0,96283.0,0.15579]
[1739842529573,0.0021702,96286.0,96283.0,0.15579]
[1739842529836,0.0021702,96286.0,96281.0,0.155792]
[1739842530039,0.0021702,96286.0,96282.0,0.155792]
[1739842530702,0.0011702,96286.0,96282.0,0.155792]
[1739842531188,0.0021702,96286.0,96280.0,0.31057005]
[1739842531364,0.0001702,96286.0,96282.0,0.0785]
[1739842531571,0.176447,96285.0,96282.0,0.0785]
[1739842531958,0.164609,96285.0,96282.0,0.0785]
[1739842532160,0.240445,96285.0,96282.0,0.234291]
[1739842532362,0.159609,96285.0,96282.0,0.0785]
[1739842532606,0.0011702,96286.0,96283.0,0.15579]
[1739842532756,0.0011702,96286.0,96282.0,0.234291]
[1739842533185,0.0011702,96286.0,96282.0,0.0785]
[1739842533643,0.0011702,96286.0,96285.0,0.237287]
[1739842533811,0.0011702,96286.0,96285.0,0.33979065]
[1739842534840,0.0001702,96286.0,96285.0,0.33979065]
[1739842535100,0.0001702,96286.0,96285.0,0.34179065]
[1739842535399,0.0001702,96286.0,96285.0,0.34379065]
[1739842535840,0.0001702,96286.0,96285.0,0.42449816]
[1739842536042,0.0001702,96286.0,96285.0,0.44380003]
[1739842539190,0.0001702,96286.0,96285.0,0.42449816]
[1739842542750,0.0001702,96286.0,96285.0,0.34379065]
[1739842549306,0.0001702,96286.0,96285.0,0.18800365]
[1739842549750,0.0001702,96286.0,96285.0,0.34379065]
[1739842549957,0.00495541,96286.0,96285.0,0.34379065]
[1739842550158,0.0001702,96286.0,96285.0,0.34379065]
[1739842553688,0.0001702,96286.0,96285.0,0.41978249]
[1739842554309,0.0001702,96286.0,96285.0,0.42012289]
[1739842557518,0.03226316,96287.0,96286.0,0.155785]
[1739842557715,0.03226316,96287.0,96286.0,0.25828865]
[1739842559385,0.03226316,96287.0,96286.0,0.25928865]
[1739842560079,0.03231792,96287.0,96286.0,0.25928865]
[1739842560285,0.03231792,96287.0,96286.0,0.26128865]
[1739842561691,0.03231792,96287.0,96286.0,0.003]
[1739842561692,0.18810192,96287.0,96286.0,0.003]
[1739842561895,0.0465,96273.0,96258.0,0.0778]
[1739842562113,0.155826,96261.0,96251.0,0.0778]
[1739842562327,1.297498,96261.0,96243.0,0.0799]
[1739842562477,1.276477,96261.0,96246.0,0.15585]
[1739842562646,1.19573335,96261.0,96246.0,0.15585]
[1739842563019,1.19573335,96261.0,96243.0,0.0799]
[1739842563214,1.21658753,96261.0,96245.0,0.155851]
[1739842563573,1.21658753,96261.0,96243.0,0.0799]
[1739842563574,1.21658753,96261.0,96246.0,0.15585]
[1739842564182,1.46800153,96261.0,96246.0,0.15585]
[1739842564568,0.76796453,96261.0,96243.0,0.0799]
[1739842564771,0.53220753,96261.0,96248.0,0.155846]
[1739842564977,0.53820753,96261.0,96248.0,0.155846]
[1739842565181,0.53820753,96261.0,96246.0,0.155849]
[1739842565713,0.53520753,96261.0,96246.0,0.155849]
[1739842566403,0.51435335,96261.0,96248.0,0.155847]
[1739842566536,0.49507535,96261.0,96248.0,0.155847]
[1739842566733,0.49507535,96261.0,96243.0,0.0799]
[1739842566734,0.49507535,96261.0,96246.0,0.15585]
[1739842566935,0.58776268,96261.0,96243.0,0.0799]
[1739842567415,0.58476268,96261.0,96236.0,0.0003406]
[1739842567574,0.6264203,96261.0,96236.0,0.0786406]
[1739842567775,0.6224203,96261.0,96236.0,0.0786406]
[1739842567981,0.6194203,96261.0,96236.0,0.0786406]
[1739842568199,0.52973297,96261.0,96236.0,0.0786406]
[1739842568413,0.49407535,96261.0,96240.0,0.155859]
[1739842568619,0.49407535,96261.0,96238.0,0.155862]
[1739842568620,0.49107535,96261.0,96238.0,0.155862]
[1739842568894,0.49107535,96261.0,96236.0,0.2864616]
[1739842568895,0.155865,96237.0,96236.0,0.0003406]
[1739842569098,0.766284,96237.0,96236.0,0.0003406]
[1739842569306,0.71321649,96237.0,96236.0,0.0003406]
[1739842569505,0.62472049,96237.0,96236.0,0.0003406]
[1739842570310,0.62472049,96237.0,96236.0,0.00045015]
[1739842570668,0.73122414,96237.0,96236.0,0.00045015]
[1739842571075,0.72722414,96237.0,96236.0,0.00045015]
[1739842571287,0.73422414,96237.0,96236.0,0.00045015]
[1739842572048,0.73122414,96237.0,96236.0,0.00045015]
[1739842572812,0.73938914,96237.0,96236.0,0.00045015]
[1739842573128,0.63688549,96237.0,96236.0,0.00045015]
[1739842573379,0.63288549,96237.0,96236.0,0.00045015]
[1739842573909,0.63588549,96237.0,96236.0,0.00045015]
[1739842574105,0.63188549,96237.0,96236.0,0.00045015]
[1739842574524,0.63988549,96237.0,96236.0,0.00045015]
[1739842574735,0.63288549,96237.0,96236.0,0.00045015]
[1739842575130,0.63588549,96237.0,96236.0,0.00045015]
[1739842575339,0.63172049,96237.0,96236.0,0.00045015]
[1739842575540,0.63572049,96237.0,96236.0,0.00045015]
[1739842575740,0.16802749,96237.0,96236.0,0.00045015]
[1739842575970,0.93946249,96237.0,96236.0,0.00045015]
[1739842576479,0.93546249,96237.0,96236.0,0.00045015]
[1739842576685,1.03796614,96237.0,96236.0,0.00045015]
[1739842576884,1.04196614,96237.0,96236.0,0.00045015]
[1739842577129,1.03496614,96237.0,96236.0,0.00045015]
[1739842577338,1.03396614,96237.0,96236.0,0.00045015]
[1739842577773,1.03796614,96237.0,96236.0,0.00045015]
[1739842577950,1.04196614,96237.0,96236.0,0.00045015]
[1739842578161,1.03896614,96237.0,96236.0,0.00045015]
[1739842578609,0.53385749,96237.0,96236.0,0.00045015]
[1739842578839,0.30263949,96237.0,96236.0,0.00045015]
[1739842579045,0.25675949,96237.0,96236.0,0.00045015]
[1739842579261,0.26375949,96237.0,96236.0,0.1029538]
[1739842579472,0.01216249,96237.0,96236.0,0.25217026]
[1739842579671,0.00816249,96237.0,96236.0,0.25217026]
[1739842579822,0.003,96237.0,96236.0,0.25217026]
[1739842580023,0.004,96237.0,96236.0,0.25217026]
[1739842580409,0.01627891,96238.0,96237.0,0.155865]
[1739842580607,0.01627891,96238.0,96237.0,0.34818552]
[1739842580808,0.29088848,96286.0,96237.0,0.34818552]
[1739842580809,0.155831,96258.0,96246.0,0.155849]
[1739842581035,0.155831,96258.0,96247.0,0.25835165]
[1739842581036,0.42349655,96257.0,96247.0,0.25835165]
[1739842581246,0.214866,96256.0,96247.0,0.10250365]
[1739842581451,0.15432904,96255.0,96251.0,0.155842]
[1739842581646,0.01627755,96257.0,96251.0,0.10250365]
[1739842581647,0.110449,96254.0,96251.0,0.10250365]
[1739842581826,0.19785,96256.0,96251.0,0.10250365]
[1739842582005,0.192646,96256.0,96251.0,0.10250365]
[1739842582208,0.223874,96256.0,96251.0,0.10250365]
[1739842582650,0.644825,96258.0,96251.0,0.10250365]
[1739842582854,0.540577,96257.0,96251.0,0.10250365]
[1739842583056,0.273181,96256.0,96251.0,0.10250365]
[1739842583264,0.260259,96258.0,96251.0,0.10250365]
[1739842583478,0.325389,96258.0,96251.0,0.10250365]
[1739842583682,0.155819,96266.0,96255.0,0.155835]
[1739842583885,0.155819,96266.0,96253.0,0.0826]
[1739842583886,0.460857,96265.0,96256.0,0.25833765]
[1739842584060,0.460857,96265.0,96256.0,0.10250365]
[1739842584061,0.616677,96265.0,96256.0,0.10250365]
[1739842584268,0.706001,96264.0,96256.0,0.10250365]
[1739842584445,0.336541,96263.0,96256.0,0.25833765]
[1739842584651,0.379815,96265.0,96256.0,0.25833765]
[1739842585199,0.330119,96265.0,96257.0,0.207777]
[1739842585372,0.192751,96264.0,96258.0,0.25833465]
[1739842585578,0.192751,96264.0,96258.0,0.10250365]
[1739842586355,0.005,96265.0,96258.0,0.10250365]
[1739842586556,0.24898234,96264.0,96258.0,0.10250365]
[1739842587019,0.316982,96264.0,96258.0,0.10250365]
[1739842588244,0.472803,96264.0,96258.0,0.10250365]
[1739842588470,0.623639,96263.0,96258.0,0.10250365]
[1739842588760,0.623639,96263.0,96245.0,0.2078]
[1739842588761,0.0335441,96262.0,96246.0,0.15585]
[1739842588962,0.155836,96255.0,96247.0,0.10250365]